[Event "European Womens-ch 2025"]
[Site "Rhodes"]
[Date "2025.04.08"]
[Round "8.36"]
[White "Calzetta Ruiz, Monica"]
[Black "Cornileau, Juliette"]
[Result "1/2-1/2"]
[Annotator "RC"]
[ECO "B66"]
[WhiteElo "2230"]
[BlackElo "2130"]
[PlyCount "154"]
[EventDate "2025.03.29"]
[EventType "swiss"]
[EventCountry "GRE"]
[SourceTitle "playchess.com"]
[Source "ChessBase"]
[SourceQuality "1"]
[TimeControl "40/5400+30:1800+30"]

1. e4 {[%emt 0:00:03]} c5 {[%emt 0:00:06]} 2. Nf3 {[%emt 0:00:07]} d6 {[%emt 0:00:08]} 3. d4 {[%emt 0:00:06]} cxd4 {[%emt 0:00:04]} 4. Nxd4 {[%emt 0:00:06]} Nf6 {[%emt 0:00:03]} 5. Nc3 {[%emt 0:00:08]} Nc6 {[%emt 0:00:06]} 6. Bg5 {[%emt 0:00:14]} e6 {[%emt 0:00:04]} 7. Qd2 {[%emt 0:00:23]} a6 {[%emt 0:00:06]} 8. Nxc6 {[%emt 0:00:06]} bxc6 {[%emt 0:00:07]} 9. O-O-O {[%emt 0:00:10]} Be7 {[%emt 0:07:06]} 10. Bxf6 {[%emt 0:03:22]} gxf6 {[%emt 0:00:23]} 11. Bc4 {[%emt 0:00:31]} Rb8 {[%emt 0:10:04]} 12. Rhe1 {[%emt 0:06:27]} Bd7 {[%emt 0:07:43]} 13. Bb3 {[%emt 0:26:35]} Qb6 {[%emt 0:18:08]} 14. Na4 {[%emt 0:20:58]} Qc7 {[%emt 0:06:46]} 15. f4 {[%emt 0:03:21]} c5 {[%emt 0:04:12]} 16. c4 {[%emt 0:00:14]} Rg8 {[%emt 0:02:25]} 17. Nc3 {[%emt 0:01:37]} a5 {[%emt 0:02:09]} 18. Re2 {[%emt 0:02:05]} Rb4 {[%emt 0:07:39]} 19. Qc2 {[%emt 0:07:13]} a4 {[%emt 0:17:39]} 20. Nxa4 {[%emt 0:00:59]} d5 {[%emt 0:01:48]} 21. exd5 {[%emt 0:00:20]} Qxf4+ {[%emt 0:00:24]} 22. Kb1 {[%emt 0:02:16]} e5 {[%emt 0:01:10]} 23. Rf2 {[%emt 0:09:41]} Rxg2 {[%emt 0:04:39]} 24. Rxf4 {[%emt 0:10:25]} Rxc2 {[%emt 0:00:05]} 25. Bxc2 {[%emt 0:02:33]} exf4 {[%emt 0:00:05]} 26. d6 {[%emt 0:00:13]} Bxa4 {[%emt 0:02:54]} 27. Bxa4+ {[%emt 0:00:01]} Rxa4 {[%emt 0:00:06]} 28. b3 {[%emt 0:00:13]} Ra6 {[%emt 0:01:50]} 29. dxe7 {[%emt 0:00:04]} Kxe7 {[%emt 0:02:46]} 30. Rf1 {[%emt 0:00:21]} f5 {[%emt 0:01:31]} 31. Rxf4 {[%emt 0:00:10]} Kf6 {[%emt 0:00:11]} 32. a4 {[%emt 0:02:28]} Ke5 {[%emt 0:00:24]} 33. Rf1 {[%emt 0:00:07]} f4 {[%emt 0:01:37]} 34. Kc2 {[%emt 0:00:47]} Ke4 {[%emt 0:00:44]} 35. Re1+ {[%emt 0:02:28]} Kf3 {[%emt 0:00:06]} 36. Ra1 {[%emt 0:00:16]} Ke2 {[%emt 0:00:13]} 37. b4 {[%emt 0:00:18]} cxb4 {[%emt 0:00:04]} 38. Kb3 {[%emt 0:00:02]} f3 {[%emt 0:01:23]} 39. a5 {[%emt 0:00:23]} f2 {[%emt 0:00:35]} 40. Kxb4 {[%emt 0:00:00]} Rd6 {[%emt 0:00:00]} 41. c5 {[%emt 0:01:21]} Rd1 {[%emt 0:03:48]} 42. Ra2+ {[%emt 0:01:19]} Ke3 {[%emt 0:06:10]} 43. Rxf2 {[%emt 0:01:19]} Rb1+ {[%emt 0:07:54]} 44. Kc4 {[%emt 0:00:07]} Kxf2 {[%emt 0:00:04]} 45. c6 {[%emt 0:00:14]} Ke3 {[%emt 0:01:03]} 46. Kc5 {[%emt 0:03:57]} Rb8 {[%emt 0:14:43]} 47. a6 {[%emt 0:05:43]} f5 {[%emt 0:00:09]} 48. a7 {[%emt 0:00:04]} Rg8 {[%emt 0:00:39]} 49. Kb6 {[%emt 0:00:12]} f4 {[%emt 0:00:33]} 50. Kb7 {[%emt 0:00:11]} f3 {[%emt 0:00:07]} 51. a8=Q {[%emt 0:00:16]} Rxa8 {[%emt 0:00:04]} 52. Kxa8 {[%emt 0:00:06]} f2 {[%emt 0:00:05]} 53. c7 {[%emt 0:00:06]} f1=Q {[%emt 0:00:03]} 54. c8=Q {[%emt 0:00:15]} Qg2+ {[%emt 0:02:33]} 55. Ka7 {[%emt 0:00:18]} Qa2+ {[%emt 0:01:09]} 56. Kb7 {[%emt 0:00:28]} Qb3+ {[%emt 0:00:20]} 57. Ka7 {[%emt 0:01:39]} Qa2+ {[%emt 0:00:23]} 58. Kb7 {[%emt 0:00:14]} Qg2+ {[%emt 0:00:41]} 59. Ka7 {[%emt 0:00:35]} Qxh2 {[%emt 0:00:53]} 60. Qc5+ {[%emt 0:03:57]} Ke4 {[%emt 0:00:57]} 61. Qc4+ {[%emt 0:01:23]} Kf5 {[%emt 0:00:14]} 62. Qf7+ {[%emt 0:00:37]} Ke4 {[%emt 0:00:16]} 63. Qc4+ {[%emt 0:00:48]} Kf3 {[%emt 0:00:04]} 64. Qd3+ {[%emt 0:02:14]} Kf2 {[%emt 0:00:28]} 65. Qd4+ {[%emt 0:02:34]} Kf1 {[%emt 0:00:45]} 66. Qd1+ {[%emt 0:00:19]} Kg2 {[%emt 0:00:10]} 67. Qe2+ {[%emt 0:01:52]} Kh1 {[%emt 0:00:52]} 68. Qe4+ {[%emt 0:00:15]} Kg1 {[%emt 0:00:10]} 69. Qe1+ {[%emt 0:00:10]} Kg2 {[%emt 0:00:05]} 70. Qe2+ {[%emt 0:00:04]} Kg3 {[%emt 0:00:25]} 71. Qe5+ {[%emt 0:01:27]} Kh3 {[%emt 0:00:05]} 72. Qf5+ {[%emt 0:00:33]} Kg2 {[%emt 0:00:12]} 73. Qe4+ {[%emt 0:00:36]} Kf1 {[%emt 0:00:14]} 74. Qd3+ {[%emt 0:01:40]} Kg1 {[%emt 0:02:25]} 75. Qd1+ {[%emt 0:00:13]} Kg2 {[%emt 0:00:06]} 76. Qe2+ {[%emt 0:00:13]} Kh1 {[%emt 0:00:05]} 77. Qe4+ {[%emt 0:00:16]} Kg1 {[%emt 0:00:16]} 1/2-1/2

[Event "European Womens-ch 2025"]
[Site "Rhodes"]
[Date "2025.04.08"]
[Round "8.37"]
[White "Rudzinska, Michalina"]
[Black "Hapala, Elisabeth"]
[Result "0-1"]
[Annotator "RC"]
[ECO "B48"]
[WhiteElo "2223"]
[BlackElo "2092"]
[PlyCount "114"]
[EventDate "2025.03.29"]
[EventType "swiss"]
[EventCountry "GRE"]
[SourceTitle "playchess.com"]
[Source "ChessBase"]
[SourceQuality "1"]
[TimeControl "40/5400+30:1800+30"]

1. e4 {[%emt 0:00:04]} c5 {[%emt 0:00:03]} 2. Nf3 {[%emt 0:00:08]} e6 {[%emt 0:00:04]} 3. d4 {[%emt 0:00:07]} cxd4 {[%emt 0:00:03]} 4. Nxd4 {[%emt 0:00:08]} Nc6 {[%emt 0:00:05]} 5. Nc3 {[%emt 0:00:09]} Qc7 {[%emt 0:00:03]} 6. Be3 {[%emt 0:00:26]} a6 {[%emt 0:00:04]} 7. a3 {[%emt 0:00:35]} b5 {[%emt 0:00:19]} 8. Nxc6 {[%emt 0:00:36]} dxc6 {[%emt 0:00:06]} 9. Qg4 {[%emt 0:00:54]} e5 {[%emt 0:00:11]} 10. Qg3 {[%emt 0:01:21]} h5 {[%emt 0:00:32]} 11. Bd4 {[%emt 0:17:00]} f6 {[%emt 0:00:40]} 12. Qg6+ {[%emt 0:00:18]} Qf7 {[%emt 0:00:06]} 13. Qxf7+ {[%emt 0:00:05]} Kxf7 {[%emt 0:00:04]} 14. Be3 {[%emt 0:00:14]} f5 {[%emt 0:00:31]} 15. f4 {[%emt 0:15:19]} g5 {[%emt 0:32:15]} 16. fxe5 {[%emt 0:08:05]} f4 {[%emt 0:00:10]} 17. Bd2 {[%emt 0:00:24]} h4 {[%emt 0:12:09]} 18. Ne2 {[%emt 0:01:58]} Bg7 {[%emt 0:04:09]} 19. Bc3 {[%emt 0:01:40]} c5 {[%emt 0:02:18]} 20. O-O-O {[%emt 0:02:01]} Ne7 {[%emt 0:01:21]} 21. Ng1 {[%emt 0:10:20]} g4 {[%emt 0:23:37]} 22. h3 {[%emt 0:00:58]} Nc6 {[%emt 0:07:41]} 23. hxg4 {[%emt 0:12:39]} Bxe5 {[%emt 0:02:02]} 24. Nf3 {[%emt 0:05:00]} Bxc3 {[%emt 0:01:02]} 25. bxc3 {[%emt 0:00:05]} Bxg4 {[%emt 0:00:38]} 26. Rd5 {[%emt 0:00:22]} Bxf3 {[%emt 0:02:51]} 27. gxf3 {[%emt 0:00:06]} Ne7 {[%emt 0:03:13]} 28. Rxc5 {[%emt 0:00:12]} Rag8 {[%emt 0:03:51]} 29. c4 {[%emt 0:03:51]} Rg3 {[%emt 0:00:17]} 30. Kd2 {[%emt 0:16:16]} Rxf3 {[%emt 0:02:54]} 31. cxb5 {[%emt 0:00:10]} axb5 {[%emt 0:00:13]} 32. Rxb5 {[%emt 0:01:30]} Rxa3 {[%emt 0:00:42]} 33. Bc4+ {[%emt 0:00:19]} Kf6 {[%emt 0:00:50]} 34. Bd3 {[%emt 0:00:42]} h3 {[%emt 0:01:14]} 35. Ke2 {[%emt 0:01:45]} h2 {[%emt 0:00:58]} 36. e5+ {[%emt 0:00:51]} Ke6 {[%emt 0:00:32]} 37. Kf3 {[%emt 0:00:28]} Nd5 {[%emt 0:00:35]} 38. Rc5 {[%emt 0:01:51]} Kxe5 {[%emt 0:00:26]} 39. Re1+ {[%emt 0:00:30]} Kd6 {[%emt 0:00:15]} 40. Rxd5+ {[%emt 0:00:00]} Kxd5 {[%emt 0:00:00]} 41. Rh1 {[%emt 0:00:47]} Rh4 {[%emt 0:04:56]} 42. Kg2 {[%emt 0:00:59]} Rxd3 {[%emt 0:13:27]} 43. cxd3 {[%emt 0:00:05]} Kd4 {[%emt 0:00:01]} 44. Kf3 {[%emt 0:01:54]} Kxd3 {[%emt 0:00:58]} 45. Rd1+ {[%emt 0:00:14]} Kc2 {[%emt 0:00:33]} 46. Rh1 {[%emt 0:00:06]} Kd2 {[%emt 0:00:03]} 47. Kf2 {[%emt 0:00:42]} Kd3 {[%emt 0:00:18]} 48. Kf3 {[%emt 0:00:08]} Kd4 {[%emt 0:00:15]} 49. Rd1+ {[%emt 0:00:10]} Ke5 {[%emt 0:00:34]} 50. Rh1 {[%emt 0:00:10]} Rh8 {[%emt 0:00:47]} 51. Re1+ {[%emt 0:01:52]} Kf5 {[%emt 0:00:08]} 52. Rh1 {[%emt 0:00:40]} Rh3+ {[%emt 0:00:10]} 53. Kf2 {[%emt 0:00:44]} Kg4 {[%emt 0:00:51]} 54. Kg2 {[%emt 0:00:08]} f3+ {[%emt 0:01:41]} 55. Kf2 {[%emt 0:00:07]} Rh8 {[%emt 0:00:21]} 56. Ke1 {[%emt 0:01:13]} Kg3 {[%emt 0:00:07]} 57. Kf1 {[%emt 0:00:05]} Ra8 {[%emt 0:00:28]} 0-1

[Event "European Womens-ch 2025"]
[Site "Rhodes"]
[Date "2025.04.08"]
[Round "8.38"]
[White "Khurtsilava, Inga"]
[Black "Zagorac, Lara"]
[Result "1-0"]
[Annotator "RC"]
[ECO "D05"]
[WhiteElo "2214"]
[BlackElo "2106"]
[PlyCount "97"]
[EventDate "2025.03.29"]
[EventType "swiss"]
[EventCountry "GRE"]
[SourceTitle "playchess.com"]
[Source "ChessBase"]
[SourceQuality "1"]
[TimeControl "40/5400+30:1800+30"]

1. Nf3 {[%emt 0:00:22]} d5 {[%emt 0:00:10]} 2. d4 {[%emt 0:00:12]} Nf6 {[%emt 0:00:09]} 3. e3 {[%emt 0:00:04]} e6 {[%emt 0:00:22]} 4. Bd3 {[%emt 0:00:20]} c5 {[%emt 0:00:24]} 5. b3 {[%emt 0:00:06]} Nc6 {[%emt 0:00:17]} 6. a3 {[%emt 0:00:04]} Bd6 {[%emt 0:00:14]} 7. Bb2 {[%emt 0:00:04]} O-O {[%emt 0:01:31]} 8. O-O {[%emt 0:00:09]} b6 {[%emt 0:01:23]} 9. Nbd2 {[%emt 0:00:04]} Bb7 {[%emt 0:00:49]} 10. Ne5 {[%emt 0:00:08]} Ne7 {[%emt 0:03:22]} 11. f4 {[%emt 0:12:59]} Ne4 {[%emt 0:07:37]} 12. Qe2 {[%emt 0:02:54]} f6 {[%emt 0:06:25]} 13. Nef3 {[%emt 0:01:11]} Qe8 {[%emt 0:11:20]} 14. Rad1 {[%emt 0:06:41]} Qh5 {[%emt 0:04:31]} 15. dxc5 {[%emt 0:01:22]} Bxc5 {[%emt 0:04:08]} 16. b4 {[%emt 0:00:20]} Nxd2 {[%emt 0:08:42]} 17. Rxd2 {[%emt 0:04:31]} Bd6 {[%emt 0:01:16]} 18. Nd4 {[%emt 0:01:48]} Qxe2 {[%emt 0:02:45]} 19. Rxe2 {[%emt 0:13:00]} Bc8 {[%emt 0:13:39]} 20. Nb5 {[%emt 0:07:21]} Rd8 {[%emt 0:07:31]} 21. e4 dxe4 {[%emt 0:03:53]} 22. Rxe4 {[%emt 0:02:58]} a6 {[%emt 0:06:15]} 23. Nxd6 {[%emt 0:05:15]} Rxd6 {[%emt 0:00:01]} 24. Rfe1 {[%emt 0:00:59]} Kf7 {[%emt 0:01:53]} 25. Bc4 {[%emt 0:02:48]} Bd7 {[%emt 0:00:49]} 26. Bb3 {[%emt 0:37:50]} Rc8 {[%emt 0:01:04]} 27. g4 {[%emt 0:00:00]} g6 {[%emt 0:00:49]} 28. g5 {[%emt 0:00:00]} fxg5 {[%emt 0:01:09]} 29. fxg5 {[%emt 0:00:00]} Nf5 {[%emt 0:12:32]} 30. Be5 {[%emt 0:00:00]} Rdc6 {[%emt 0:00:00]} 31. Rd1 {[%emt 0:00:00]} Be8 {[%emt 0:00:00]} 32. Re2 {[%emt 0:00:00]} b5 {[%emt 0:00:00]} 33. Kf2 {[%emt 0:00:00]} h5 {[%emt 0:00:00]} 34. gxh6 {[%emt 0:00:00]} Nxh6 {[%emt 0:00:00]} 35. Bd6 {[%emt 0:00:00]} Bd7 {[%emt 0:00:00]} 36. Bf4 {[%emt 0:00:00]} Ng4+ {[%emt 0:00:00]} 37. Kg3 {[%emt 0:00:00]} Nf6 {[%emt 0:00:00]} 38. Be5 {[%emt 0:00:00]} Nd5 {[%emt 0:00:00]} 39. Rf1+ {[%emt 0:00:00]} Ke7 {[%emt 0:00:00]} 40. Bd4 {[%emt 0:00:00]} Kd8 {[%emt 0:00:00]} 41. Rf7 {[%emt 0:24:22]} Be8 {[%emt 0:25:38]} 42. Rf1 {[%emt 0:00:00]} Bd7 {[%emt 0:00:00]} 43. Rf7 {[%emt 0:00:00]} Be8 {[%emt 0:00:00]} 44. Rg7 {[%emt 0:00:00]} Rd6 {[%emt 0:00:00]} 45. Bxd5 {[%emt 0:00:00]} exd5 {[%emt 0:00:00]} 46. Bc5 {[%emt 0:00:00]} Rdc6 {[%emt 0:00:00]} 47. Rg8 {[%emt 0:00:00]} Rxc5 {[%emt 0:00:00]} 48. Rgxe8+ {[%emt 0:00:00]} Kd7 {[%emt 0:00:00]} 49. R8e7+ {[%emt 0:00:00]} 1-0

[Event "European Womens-ch 2025"]
[Site "Rhodes"]
[Date "2025.04.08"]
[Round "8.39"]
[White "Lehaci, Miruna-Daria"]
[Black "Tirpan, Ceren"]
[Result "1/2-1/2"]
[Annotator "RC"]
[ECO "B22"]
[WhiteElo "2212"]
[BlackElo "1996"]
[PlyCount "144"]
[EventDate "2025.03.29"]
[EventType "swiss"]
[EventCountry "GRE"]
[SourceTitle "playchess.com"]
[Source "ChessBase"]
[SourceQuality "1"]
[TimeControl "40/5400+30:1800+30"]

1. e4 {[%emt 0:00:03]} c5 {[%emt 0:00:13]} 2. c3 {[%emt 0:00:07]} Nf6 {[%emt 0:00:28]} 3. e5 {[%emt 0:00:07]} Nd5 {[%emt 0:00:05]} 4. Bc4 {[%emt 0:00:04]} Nb6 {[%emt 0:00:05]} 5. Bb3 {[%emt 0:00:10]} c4 {[%emt 0:00:47]} 6. Bc2 {[%emt 0:00:07]} Nc6 {[%emt 0:00:59]} 7. Nf3 {[%emt 0:00:40]} d6 {[%emt 0:05:24]} 8. exd6 {[%emt 0:00:37]} Qxd6 {[%emt 0:00:35]} 9. O-O {[%emt 0:00:09]} g6 {[%emt 0:00:40]} 10. Na3 {[%emt 0:01:35]} Bg7 {[%emt 0:05:23]} 11. b3 {[%emt 0:00:29]} cxb3 {[%emt 0:06:46]} 12. axb3 {[%emt 0:00:16]} O-O {[%emt 0:00:14]} 13. Nc4 {[%emt 0:00:54]} Nxc4 {[%emt 0:04:58]} 14. bxc4 {[%emt 0:00:05]} Qc5 {[%emt 0:00:39]} 15. Ra4 {[%emt 0:09:41]} Rd8 {[%emt 0:09:32]} 16. d4 {[%emt 0:04:43]} Qh5 {[%emt 0:06:06]} 17. h3 {[%emt 0:07:43]} b5 {[%emt 0:11:13]} 18. cxb5 {[%emt 0:02:47]} Qxb5 {[%emt 0:00:12]} 19. Bd3 {[%emt 0:05:27]} Qb8 {[%emt 0:04:16]} 20. Qe2 {[%emt 0:06:09]} Bd7 {[%emt 0:10:50]} 21. Ra6 {[%emt 0:07:59]} Qc7 {[%emt 0:00:41]} 22. Bd2 {[%emt 0:01:53]} Bc8 {[%emt 0:04:17]} 23. Ra3 {[%emt 0:04:50]} Bb7 {[%emt 0:02:57]} 24. Bc4 {[%emt 0:06:23]} h6 {[%emt 0:04:58]} 25. Ba2 {[%emt 0:03:12]} a5 {[%emt 0:02:08]} 26. Re1 {[%emt 0:01:29]} Ba6 {[%emt 0:03:40]} 27. Qe4 {[%emt 0:05:36]} Qd6 {[%emt 0:00:44]} 28. Bc1 {[%emt 0:01:29]} e6 {[%emt 0:01:43]} 29. Nd2 {[%emt 0:01:25]} Bb7 {[%emt 0:01:49]} 30. Nc4 {[%emt 0:04:30]} Qc7 {[%emt 0:06:29]} 31. Bf4 {[%emt 0:03:06]} Qd7 {[%emt 0:00:08]} 32. Qb1 {[%emt 0:04:36]} Ne7 {[%emt 0:03:01]} 33. Nd6 {[%emt 0:06:24]} Bd5 {[%emt 0:00:49]} 34. c4 {[%emt 0:00:38]} Bc6 {[%emt 0:00:05]} 35. Qd3 {[%emt 0:02:22]} Bf8 {[%emt 0:01:02]} 36. Be5 {[%emt 0:04:22]} Nc8 {[%emt 0:01:47]} 37. Ne4 {[%emt 0:02:33]} Bxe4 {[%emt 0:00:20]} 38. Qxe4 {[%emt 0:00:28]} Bxa3 {[%emt 0:01:38]} 39. Qxa8 {[%emt 0:00:06]} Bb4 {[%emt 0:00:13]} 40. Qf3 {[%emt 0:00:00]} Bxe1 {[%emt 0:00:00]} 41. Qf6 {[%emt 0:02:19]} Kf8 {[%emt 0:01:50]} 42. Qh8+ {[%emt 0:02:14]} Ke7 {[%emt 0:00:08]} 43. Qf6+ {[%emt 0:02:00]} Ke8 {[%emt 0:00:30]} 44. Qh8+ {[%emt 0:00:05]} Ke7 {[%emt 0:00:04]} 45. Bf6+ {[%emt 0:00:02]} Kd6 {[%emt 0:00:02]} 46. Bxd8 {[%emt 0:00:32]} Kc6 {[%emt 0:00:21]} 47. Bh4 {[%emt 0:05:11]} Kb7 {[%emt 0:07:33]} 48. Qe5 {[%emt 0:03:59]} Bb4 {[%emt 0:06:18]} 49. c5 {[%emt 0:03:26]} Ne7 {[%emt 0:06:35]} 50. Bxe7 {[%emt 0:03:07]} Qxe7 {[%emt 0:00:06]} 51. Bd5+ {[%emt 0:00:11]} Kc8 {[%emt 0:07:29]} 52. Bf3 {[%emt 0:00:07]} Qc7 {[%emt 0:02:51]} 53. Qe4 {[%emt 0:00:50]} Kd7 {[%emt 0:01:39]} 54. g3 {[%emt 0:03:13]} h5 {[%emt 0:01:01]} 55. Bd1 {[%emt 0:03:23]} Ke7 {[%emt 0:00:17]} 56. Ba4 {[%emt 0:00:30]} Bc3 {[%emt 0:01:28]} 57. Qe3 {[%emt 0:04:16]} Bb4 {[%emt 0:00:11]} 58. Qh6 {[%emt 0:01:18]} e5 {[%emt 0:01:50]} 59. Qg7 {[%emt 0:00:17]} exd4 {[%emt 0:01:08]} 60. Bb3 {[%emt 0:00:04]} Qxc5 {[%emt 0:00:42]} 61. Bxf7 {[%emt 0:00:37]} Kd8 {[%emt 0:00:13]} 62. Be6 {[%emt 0:01:04]} Qd6 {[%emt 0:00:32]} 63. Qg8+ {[%emt 0:00:36]} Kc7 {[%emt 0:00:04]} 64. Qc8+ {[%emt 0:00:35]} Kb6 {[%emt 0:00:04]} 65. Bc4 {[%emt 0:00:05]} Qc5 {[%emt 0:00:36]} 66. Qb8+ {[%emt 0:01:21]} Kc6 {[%emt 0:00:08]} 67. Qc8+ {[%emt 0:01:53]} Kb6 {[%emt 0:00:06]} 68. Qb8+ {[%emt 0:00:13]} Kc6 {[%emt 0:00:03]} 69. Qc8+ {[%emt 0:00:03]} Kb6 {[%emt 0:00:04]} 70. Qb8+ {[%emt 0:00:02]} Kc6 {[%emt 0:00:04]} 71. Qc8+ {[%emt 0:00:02]} Kb6 {[%emt 0:00:03]} 72. Qb8+ {[%emt 0:01:14]} Kc6 {[%emt 0:00:08]} 1/2-1/2

[Event "European Womens-ch 2025"]
[Site "Rhodes"]
[Date "2025.04.08"]
[Round "8.40"]
[White "Eric, Jovana"]
[Black "Lach, Aleksandra"]
[Result "1-0"]
[Annotator "RC"]
[ECO "C10"]
[WhiteElo "2147"]
[BlackElo "2208"]
[PlyCount "135"]
[EventDate "2025.03.29"]
[EventType "swiss"]
[EventCountry "GRE"]
[SourceTitle "playchess.com"]
[Source "ChessBase"]
[SourceQuality "1"]
[TimeControl "40/5400+30:1800+30"]

1. e4 {[%emt 0:00:04]} e6 {[%emt 0:01:25]} 2. d4 {[%emt 0:00:15]} d5 {[%emt 0:00:17]} 3. Nc3 {[%emt 0:00:21]} dxe4 {[%emt 0:00:40]} 4. Nxe4 {[%emt 0:00:08]} Nd7 {[%emt 0:00:12]} 5. g3 {[%emt 0:02:12]} b6 {[%emt 0:00:18]} 6. Bg2 {[%emt 0:00:33]} Rb8 {[%emt 0:00:04]} 7. Nf3 {[%emt 0:01:27]} Bb7 {[%emt 0:01:32]} 8. Qe2 {[%emt 0:01:27]} Ngf6 {[%emt 0:01:31]} 9. Nxf6+ {[%emt 0:04:17]} Qxf6 {[%emt 0:03:38]} 10. O-O {[%emt 0:06:21]} Bd6 {[%emt 0:10:52]} 11. Be3 {[%emt 0:05:04]} O-O {[%emt 0:01:43]} 12. c4 {[%emt 0:00:31]} h6 {[%emt 0:06:18]} 13. Rad1 {[%emt 0:03:59]} Rfe8 {[%emt 0:16:12]} 14. Rfe1 {[%emt 0:09:43]} Bb4 {[%emt 0:12:32]} 15. Bd2 {[%emt 0:04:06]} Bxf3 {[%emt 0:06:42]} 16. Qxf3 {[%emt 0:03:21]} Bxd2 {[%emt 0:09:59]} 17. Rxd2 {[%emt 0:00:10]} Qxf3 {[%emt 0:04:51]} 18. Bxf3 {[%emt 0:00:06]} Red8 {[%emt 0:00:26]} 19. h4 {[%emt 0:04:42]} a5 {[%emt 0:02:56]} 20. Kf1 {[%emt 0:05:15]} Nf8 {[%emt 0:02:45]} 21. Red1 {[%emt 0:02:05]} b5 {[%emt 0:00:31]} 22. cxb5 {[%emt 0:07:22]} Rxb5 {[%emt 0:00:02]} 23. b3 {[%emt 0:00:11]} Rb4 {[%emt 0:06:05]} 24. d5 {[%emt 0:04:51]} exd5 {[%emt 0:00:16]} 25. Bxd5 {[%emt 0:01:03]} Rd6 {[%emt 0:04:57]} 26. Bc4 {[%emt 0:02:17]} Rbb6 {[%emt 0:00:07]} 27. Rxd6 {[%emt 0:05:33]} Rxd6 {[%emt 0:00:07]} 28. Rxd6 {[%emt 0:01:13]} cxd6 {[%emt 0:00:02]} 29. Ke2 {[%emt 0:01:02]} Nd7 {[%emt 0:01:39]} 30. a4 {[%emt 0:03:05]} Nb6 {[%emt 0:03:21]} 31. Kd3 {[%emt 0:01:43]} Kf8 {[%emt 0:00:02]} 32. b4 {[%emt 0:03:13]} axb4 {[%emt 0:01:51]} 33. a5 {[%emt 0:00:12]} Nc8 {[%emt 0:00:31]} 34. Bd5 {[%emt 0:02:28]} Ke7 {[%emt 0:01:20]} 35. Kc4 {[%emt 0:01:03]} Na7 {[%emt 0:00:59]} 36. Kxb4 {[%emt 0:00:26]} f6 {[%emt 0:00:31]} 37. a6 {[%emt 0:01:41]} Kd7 {[%emt 0:00:16]} 38. Ka5 {[%emt 0:02:04]} Kc7 {[%emt 0:00:06]} 39. Bb7 {[%emt 0:00:19]} g5 {[%emt 0:00:52]} 40. hxg5 {[%emt 0:00:00]} hxg5 {[%emt 0:00:00]} 41. g4 {[%emt 0:03:02]} d5 {[%emt 0:13:23]} 42. Bxd5 {[%emt 0:01:11]} Nc8 {[%emt 0:01:45]} 43. f3 {[%emt 0:00:18]} Kb8 {[%emt 0:08:25]} 44. Kb5 {[%emt 0:01:00]} Ka7 {[%emt 0:01:36]} 45. Bb7 {[%emt 0:02:16]} Ne7 {[%emt 0:03:05]} 46. Be4 {[%emt 0:02:07]} Nc8 {[%emt 0:02:21]} 47. Bd3 {[%emt 0:00:13]} Nd6+ {[%emt 0:01:38]} 48. Kc5 {[%emt 0:00:31]} Nf7 {[%emt 0:00:47]} 49. Kd5 {[%emt 0:00:19]} Ne5 {[%emt 0:00:14]} 50. Ke4 {[%emt 0:00:56]} Ng6 {[%emt 0:00:29]} 51. Kd5 {[%emt 0:10:43]} Nf4+ {[%emt 0:01:30]} 52. Kd4 {[%emt 0:00:16]} Ne6+ {[%emt 0:01:11]} 53. Ke3 {[%emt 0:00:28]} Nf4 {[%emt 0:00:35]} 54. Bc4 {[%emt 0:01:05]} Kb6 {[%emt 0:00:44]} 55. Ke4 {[%emt 0:02:02]} Ng6 {[%emt 0:00:14]} 56. Kd5 {[%emt 0:03:45]} Nh4 {[%emt 0:01:01]} 57. Ke4 {[%emt 0:02:57]} Ng6 {[%emt 0:00:14]} 58. Be2 {[%emt 0:00:48]} Nf4 {[%emt 0:00:32]} 59. Bf1 {[%emt 0:00:45]} Ng6 {[%emt 0:00:13]} 60. Kf5 {[%emt 0:10:08]} Nh4+ {[%emt 0:00:05]} 61. Kxf6 {[%emt 0:00:35]} Nxf3 {[%emt 0:00:01]} 62. Kg6 {[%emt 0:00:37]} Ka7 {[%emt 0:01:00]} 63. Kh5 {[%emt 0:00:08]} Nd2 {[%emt 0:01:37]} 64. Bd3 {[%emt 0:01:11]} Nf3 {[%emt 0:00:38]} 65. Be4 {[%emt 0:00:21]} Nd4 {[%emt 0:00:24]} 66. Bb7 {[%emt 0:00:20]} Ne6 {[%emt 0:00:24]} 67. Kg6 {[%emt 0:00:08]} Kb6 {[%emt 0:00:23]} 68. Kf5 {[%emt 0:00:11]} 1-0